bitfinex/quotes_SOLUSD_20220130
["timestamp","ask_amount","ask_price","bid_price","bid_amount"]
[1643562526992,1.43363395,94.474,94.391,37.74610772]
[1643562527193,1.43363395,94.473,94.391,37.74610772]
[1643562527392,1.43363395,94.472,94.391,37.74610772]
[1643562527592,15.07,94.47,94.391,37.74610772]
[1643562527793,0.1,94.469,94.391,37.74610772]
[1643562527993,105.5,94.459,94.391,37.74610772]
[1643562528193,22.838,94.458,94.391,37.74610772]
[1643562528393,105.6,94.457,94.391,37.74610772]
[1643562528594,0.1,94.456,94.391,37.74610772]
[1643562528998,105.5,94.449,94.391,37.74610772]
[1643562529193,0.1,94.448,94.391,37.74610772]
[1643562530095,105.5,94.439,94.391,37.74610772]
[1643562530295,0.1,94.438,94.37,15.896]
[1643562530496,129.938,94.438,94.37,15.896]
[1643562530696,0.1,94.437,94.37,15.896]
[1643562530895,0.1,94.437,94.38,6.0]
[1643562531096,15.896,94.43,94.38,6.0]
[1643562531298,15.896,94.43,94.381,33.76727054]
[1643562531496,15.896,94.43,94.391,6.0]
[1643562532999,15.896,94.43,94.381,33.76727054]
[1643562541407,15.396,94.43,94.381,33.76727054]
[1643562548315,15.396,94.43,94.391,6.0]
[1643562548940,15.396,94.43,94.381,33.76727054]
[1643562553642,15.396,94.43,94.391,6.0]
[1643562554745,15.396,94.43,94.381,33.76727054]
[1643562558848,6.0,94.42,94.381,33.76727054]
[1643562559049,21.895,94.42,94.381,33.76727054]
[1643562559652,21.895,94.42,94.355,1.46758346]
[1643562559955,21.895,94.42,94.371,0.25]
[1643562560153,21.895,94.42,94.36,21.896]
[1643562560352,21.895,94.42,94.361,0.25]
[1643562560753,21.895,94.42,94.36,21.896]
[1643562561053,105.5,94.399,94.345,1.46758346]
[1643562561251,105.5,94.399,94.3,15.07]
[1643562561252,24.241,94.398,94.331,1.46758346]
[1643562561451,24.241,94.398,94.322,1.46758346]
[1643562561653,24.241,94.398,94.32,1.46758346]
[1643562561851,24.241,94.398,94.314,6.0]
[1643562561852,24.241,94.398,94.322,1.46758346]
[1643562562051,24.241,94.398,94.325,1.46758346]
[1643562562254,24.241,94.398,94.326,0.25]
[1643562563054,15.902,94.39,94.33,15.901]
[1643562563253,15.902,94.39,94.331,0.25]
[1643562564856,15.902,94.39,94.322,0.25]
[1643562565457,15.902,94.39,94.321,44.24247543]
[1643562566957,15.902,94.39,94.322,0.25]
[1643562567661,15.902,94.39,94.33,15.902]
[1643562567857,15.902,94.39,94.331,0.25]
[1643562568460,21.902,94.38,94.331,0.25]
[1643562568758,6.0,94.38,94.34,15.9]
[1643562569158,24.241,94.398,94.341,0.25]
[1643562569359,6.0,94.388,94.341,0.25]
[1643562569958,15.9,94.39,94.341,0.25]
[1643562570158,6.0,94.378,94.341,0.25]
[1643562570361,15.9,94.39,94.341,0.25]
[1643562570559,6.0,94.38,94.341,0.25]
[1643562570858,21.901,94.38,94.341,0.25]
[1643562571057,21.901,94.38,94.33,15.901]
[1643562571259,21.901,94.38,94.331,0.25]
[1643562571458,6.0,94.38,94.331,0.25]
[1643562571658,6.0,94.38,94.331,6.25]
[1643562571858,23.7982,94.408,94.331,6.25]
[1643562572061,6.0,94.398,94.332,24.0873]
[1643562572258,6.0,94.398,94.333,0.25]
[1643562573058,15.9,94.39,94.34,15.9]
[1643562573259,15.9,94.39,94.341,0.25]
[1643562574461,15.9,94.39,94.333,0.25]
[1643562575861,53.0,94.41,94.34,15.9]
[1643562576061,53.005,94.4,94.332,24.0873]
[1643562576263,53.005,94.4,94.335,0.25]
[1643562577063,15.9,94.39,94.335,0.25]
[1643562577263,15.9,94.39,94.333,0.25]
[1643562577868,15.9,94.39,94.332,24.0873]
[1643562578075,15.9,94.39,94.34,15.9]
[1643562578672,6.0,94.38,94.34,15.9]
[1643562579271,6.0,94.38,94.341,0.25]
[1643562579472,6.0,94.38,94.35,15.899]
[1643562579674,6.0,94.38,94.351,16.55374903]
[1643562579972,15.899,94.4,94.351,16.55374903]
[1643562580973,15.899,94.4,94.352,0.25]
[1643562582075,52.999,94.42,94.352,0.25]
[1643562582293,22.9994,94.419,94.352,23.4801]
[1643562582992,15.898,94.4,94.352,23.4801]
[1643562583195,15.898,94.4,94.352,0.25]
[1643562583594,6.0,94.39,94.352,0.25]
[1643562583794,53.001,94.41,94.352,0.25]
[1643562583994,6.0,94.4,94.352,0.25]
[1643562585094,22.9994,94.419,94.352,0.25]
[1643562585295,6.0,94.409,94.352,23.4567]
[1643562586097,15.899,94.4,94.352,23.4567]
[1643562595507,15.899,94.4,94.351,16.55374903]
[1643562596806,15.899,94.4,94.352,0.25]
[1643562598811,6.0,94.39,94.352,0.25]
[1643562599012,21.9,94.39,94.352,0.25]
[1643562599212,21.9,94.39,94.351,16.55374903]
[1643562599814,15.9,94.39,94.351,16.55374903]
[1643562601418,24.8516,94.399,94.351,16.55374903]
[1643562601616,24.8516,94.399,94.352,0.25]
[1643562602018,6.0,94.389,94.352,0.25]
[1643562602418,24.8516,94.399,94.351,16.55374903]
[1643562602619,105.5,94.398,94.351,16.55374903]
[1643562603219,105.5,94.398,94.331,22.7271]
[1643562603419,105.5,94.398,94.332,0.25]
[1643562603623,15.9,94.38,94.326,1.46758346]
[1643562603820,15.9,94.38,94.31,1.46758346]
[1643562604025,26.98259142,94.379,94.304,24.73398346]
[1643562604223,26.98259142,94.379,94.305,35.36079749]
[1643562604422,24.0259,94.379,94.305,35.36079749]
[1643562604621,15.907,94.36,94.305,35.36079749]
[1643562604822,24.1794,94.359,94.306,0.25]
[1643562605721,15.908,94.35,94.306,0.25]
[1643562606522,15.908,94.35,94.305,35.36079749]
[1643562607721,15.908,94.35,94.306,0.25]
[1643562609146,15.908,94.35,94.305,35.36079749]
[1643562609349,15.908,94.35,94.289,1.46758346]
[1643562609547,6.0,94.34,94.282,1.46758346]
[1643562609748,15.912,94.33,94.278,1.46758346]
[1643562609948,23.453,94.329,94.274,24.0505]
[1643562610348,23.453,94.329,94.275,33.65114132]
[1643562611648,15.912,94.32,94.251,1.46758346]
[1643562611846,15.912,94.32,94.252,0.25]
[1643562612948,15.916,94.3,94.246,0.25]
[1643562613346,15.916,94.3,94.245,45.90764509]
[1643562613748,15.916,94.3,94.25,15.914]
[1643562614750,15.916,94.3,94.245,45.90764509]
[1643562614948,15.916,94.3,94.246,0.25]
[1643562616353,105.5,94.299,94.246,0.25]
[1643562616557,15.918,94.29,94.246,0.25]
[1643562616955,15.918,94.29,94.245,45.90764509]
[1643562617255,15.918,94.29,94.246,0.25]
[1643562622364,15.918,94.29,94.255,6.0]
[1643562622564,15.914,94.3,94.255,6.0]
[1643562622765,15.914,94.3,94.256,0.25]
[1643562623164,15.914,94.3,94.255,5.25]
[1643562623371,23.2377,94.349,94.255,5.25]
[1643562623565,53.04,94.34,94.256,22.8485]
[1643562624966,15.911,94.32,94.26,15.912]
[1643562625368,15.911,94.32,94.27,6.0]
[1643562625866,15.911,94.32,94.271,0.25]
[1643562626972,15.911,94.32,94.266,6.0]
[1643562626973,15.911,94.32,94.267,0.25]
[1643562627195,0.25,94.319,94.267,0.25]
[1643562627369,15.911,94.32,94.267,0.25]
[1643562628668,24.2076,94.319,94.267,0.25]
[1643562628870,15.914,94.31,94.256,22.8485]
[1643562629072,15.914,94.31,94.24,15.559]
[1643562629276,15.914,94.31,94.251,0.25]
[1643562629472,15.914,94.31,94.255,6.0]
[1643562629672,15.914,94.31,94.256,6.0]
[1643562629873,15.914,94.31,94.256,6.25]
[1643562634592,15.914,94.31,94.261,0.25]
[1643562635990,6.0,94.3,94.245,45.90764509]
[1643562636192,15.918,94.29,94.245,45.90764509]
[1643562637593,15.918,94.29,94.246,0.25]
[1643562642325,15.914,94.3,94.255,6.0]
[1643562642722,24.2544,94.319,94.256,0.25]
[1643562642922,24.2544,94.319,94.256,24.1611]
[1643562643125,24.2544,94.319,94.266,6.0]
[1643562643325,24.2544,94.319,94.267,0.25]
[1643562643522,24.2544,94.319,94.266,6.0]
[1643562643722,15.913,94.31,94.26,15.912]
[1643562644124,15.913,94.31,94.27,6.0]
[1643562644322,15.913,94.31,94.271,0.25]
[1643562645621,15.913,94.31,94.26,15.912]
[1643562645622,15.913,94.31,94.27,6.0]
[1643562645822,15.913,94.31,94.271,0.25]
[1643562647025,15.913,94.31,94.257,0.25]
[1643562649026,15.913,94.31,94.266,6.0]
[1643562649426,15.913,94.31,94.267,0.25]
[1643562650829,24.2544,94.319,94.267,0.25]
[1643562651032,24.2544,94.319,94.27,6.0]
[1643562651430,24.2544,94.319,94.271,0.25]
[1643562653235,15.911,94.32,94.271,0.25]
[1643562655336,24.1434,94.338,94.271,0.25]
[1643562655537,15.909,94.33,94.28,6.0]
[1643562655737,15.909,94.33,94.281,14.88857937]
[1643562655939,15.909,94.33,94.281,21.13857937]
[1643562656338,6.0,94.32,94.281,15.13857937]
[1643562656538,15.909,94.33,94.281,15.13857937]
[1643562658941,15.909,94.33,94.291,6.0]
[1643562659141,15.909,94.33,94.282,23.4109]
[1643562659341,15.909,94.33,94.283,0.25]
[1643562660142,15.911,94.32,94.283,0.25]
[1643562660543,24.1434,94.338,94.291,6.0]
[1643562661145,15.909,94.33,94.291,6.0]
[1643562661346,15.909,94.33,94.292,0.25]
[1643562663044,15.909,94.33,94.292,6.25]
[1643562663245,15.909,94.33,94.292,6.0]
[1643562663445,15.909,94.33,94.293,0.25]
[1643562663644,24.1434,94.338,94.293,0.25]
[1643562664444,15.908,94.34,94.293,0.25]
[1643562664646,1.43363395,94.367,94.294,2.39897274]
[1643562664945,105.5,94.408,94.294,2.39897274]
[1643562664946,23.6539,94.402,94.298,1.46758346]
[1643562665145,15.902,94.38,94.308,6.0]
[1643562665350,15.902,94.38,94.309,0.25]
[1643562665645,15.902,94.38,94.312,44.73291359]
[1643562665848,15.902,94.38,94.313,0.25]
[1643562666046,15.902,94.38,94.322,6.0]
[1643562666447,15.902,94.38,94.323,0.25]
[1643562666648,15.902,94.38,94.323,6.25]
[1643562669452,15.902,94.38,94.33,6.0]
[1643562669751,24.1187,94.406,94.333,6.0]
[1643562670155,24.1187,94.406,94.341,6.0]
[1643562670357,24.1187,94.406,94.342,16.31331087]
[1643562670552,24.1187,94.406,94.342,30.16331087]
[1643562670553,6.0,94.396,94.342,30.16331087]
[1643562670957,15.898,94.41,94.352,6.0]
[1643562671156,6.0,94.4,94.343,24.3116]
[1643562671356,24.7253,94.429,94.344,0.25]
[1643562671555,24.7253,94.429,94.353,6.0]
[1643562671556,6.0,94.419,94.353,6.0]
[1643562671758,15.898,94.41,94.344,0.25]
[1643562672157,15.898,94.41,94.353,6.0]
[1643562672357,15.898,94.41,94.354,0.25]
[1643562672959,24.3688,94.418,94.354,0.25]
[1643562673558,24.3688,94.418,94.36,6.0]
[1643562673958,24.3688,94.418,94.361,0.25]
[1643562674558,24.3688,94.418,94.37,6.0]
[1643562674758,24.3688,94.418,94.371,36.87286405]
[1643562675158,15.897,94.41,94.371,36.87286405]
[1643562675362,15.897,94.41,94.372,0.25]
[1643562676284,15.897,94.41,94.381,6.0]
[1643562676484,0.1,94.438,94.381,6.0]
[1643562676684,1.43363395,94.463,94.381,6.0]
[1643562676685,23.4819,94.439,94.382,0.25]
[1643562676885,0.1,94.438,94.382,0.25]
[1643562677087,0.1,94.438,94.382,6.25]
[1643562677487,0.1,94.438,94.39,6.0]
[1643562677687,23.3128,94.479,94.382,0.25]
[1643562677885,0.1,94.478,94.392,6.0]
[1643562678285,0.1,94.478,94.41,15.885]
[1643562678485,0.1,94.478,94.411,24.17336041]
[1643562678685,0.1,94.478,94.42,6.0]
[1643562678885,0.1,94.478,94.421,6.25]
[1643562679288,23.2616,94.494,94.421,6.25]
[1643562679487,2.95669142,94.477,94.411,24.17336041]
[1643562679686,2.95669142,94.477,94.412,0.25]
[1643562679891,0.1,94.493,94.412,0.25]
[1643562679892,15.887,94.47,94.412,0.25]
[1643562680087,0.1,94.469,94.412,0.25]
[1643562680488,0.1,94.469,94.421,6.0]
[1643562680891,0.1,94.469,94.422,0.25]
[1643562681089,15.889,94.46,94.422,0.25]
[1643562681390,0.1,94.459,94.422,0.25]
[1643562681890,0.1,94.482,94.412,0.25]
[1643562682090,15.887,94.47,94.412,0.25]
[1643562682290,0.1,94.469,94.421,6.0]
[1643562682490,0.1,94.482,94.421,6.0]
[1643562682791,0.1,94.482,94.422,0.25]
[1643562683995,15.885,94.48,94.421,0.25]
[1643562684193,0.1,94.479,94.421,0.25]
[1643562684394,0.1,94.479,94.421,6.0]
[1643562684800,0.1,94.479,94.422,0.25]
[1643562685397,0.35,94.479,94.422,0.25]
[1643562687002,6.0,94.47,94.422,0.25]
[1643562687201,21.887,94.47,94.422,0.25]
[1643562687401,0.1,94.469,94.412,0.25]
[1643562688502,0.1,94.469,94.421,6.0]
[1643562688902,0.1,94.469,94.422,0.25]
[1643562689904,0.1,94.469,94.412,0.25]
[1643562690104,0.1,94.469,94.421,6.0]
[1643562690306,0.1,94.469,94.422,0.25]
[1643562691107,0.1,94.479,94.43,6.0]
[1643562691307,0.1,94.479,94.431,0.25]
[1643562691707,0.1,94.479,94.43,5.75]
[1643562691907,0.35,94.479,94.431,0.25]
[1643562692808,15.887,94.47,94.411,24.17336041]
[1643562693008,0.1,94.469,94.411,24.17336041]
[1643562693414,0.1,94.469,94.421,6.0]
[1643562693910,0.1,94.469,94.422,0.25]
[1643562694508,0.35,94.479,94.43,6.0]
[1643562694909,0.1,94.479,94.431,0.25]
[1643562695110,6.0,94.485,94.431,105.75]
[1643562695510,15.878,94.52,94.441,6.0]
[1643562695710,0.1,94.519,94.442,36.62286405]
[1643562695909,0.1,94.519,94.442,42.87286405]
[1643562696309,0.1,94.519,94.443,107.89287822]
[1643562696509,1.43363395,94.538,94.453,6.0]
[1643562696712,1.43363395,94.555,94.453,6.0]
[1643562696910,1.43363395,94.557,94.454,105.75]
[1643562697110,1.43363395,94.555,94.454,111.75]
[1643562697312,1.43363395,94.554,94.464,105.5]
[1643562697510,0.1,94.57,94.464,105.5]
[1643562697511,1.43363395,94.559,94.464,105.5]
[1643562697712,0.1,94.57,94.475,24.17336041]
[1643562697915,0.25,94.558,94.476,0.25]
[1643562698116,0.25,94.558,94.485,6.0]
[1643562698316,0.25,94.558,94.486,0.25]
[1643562698519,0.25,94.558,94.49,15.871]
[1643562698918,0.25,94.563,94.5,6.0]
[1643562699124,0.35,94.57,94.5,6.0]
[1643562699421,16.22,94.57,94.501,0.25]
[1643562699622,0.1,94.569,94.511,36.62286405]
[1643562699821,0.1,94.569,94.512,0.25]
[1643562700021,0.25,94.57,94.512,0.25]
[1643562700022,0.35,94.57,94.512,0.25]
[1643562700926,15.871,94.56,94.512,0.25]
[1643562701225,0.1,94.559,94.512,0.25]
[1643562701424,0.35,94.559,94.512,0.25]
[1643562701924,15.873,94.55,94.512,0.25]
[1643562702123,0.1,94.549,94.512,0.25]
[1643562702552,0.25,94.559,94.512,0.25]
[1643562702749,0.25,94.559,94.464,15.8265]
[1643562702750,0.25,94.559,94.45,67.984]
[1643562702950,2.95669142,94.558,94.44,15.07]
[1643562703151,2.95669142,94.558,94.432,23.352]
[1643562703351,0.25,94.557,94.432,23.352]
[1643562703549,15.873,94.55,94.46,15.877]
[1643562703755,23.2701,94.549,94.46,15.877]
[1643562703951,0.1,94.548,94.46,18.26286134]
[1643562704151,0.1,94.548,94.47,6.0]
[1643562704350,0.1,94.548,94.471,14.73543749]
[1643562704551,0.1,94.548,94.481,6.0]
[1643562704752,15.874,94.54,94.481,6.0]
[1643562704951,0.1,94.539,94.482,0.25]
[1643562705351,0.1,94.548,94.482,0.25]
[1643562706654,0.35,94.548,94.482,0.25]
[1643562706853,15.875,94.54,94.482,0.25]
[1643562707153,15.875,94.54,94.49,6.0]
[1643562707353,0.1,94.539,94.491,0.25]
[1643562707755,0.35,94.548,94.491,0.25]
[1643562707955,0.1,94.568,94.491,0.25]
[1643562708456,0.35,94.568,94.491,0.25]
[1643562708656,0.35,94.568,94.483,0.25]
[1643562709058,15.871,94.56,94.49,15.872]
[1643562709261,0.35,94.559,94.471,14.48543749]
[1643562709459,15.07,94.55,94.471,14.48543749]
[1643562709660,0.1,94.549,94.471,14.48543749]
[1643562709868,3.30669142,94.549,94.471,14.48543749]
[1643562710068,2.95669142,94.548,94.471,14.48543749]
[1643562710269,0.25,94.547,94.471,14.48543749]
[1643562710670,2.95669142,94.546,94.471,14.48543749]
[1643562710969,15.877,94.54,94.471,14.48543749]
[1643562711170,15.07,94.53,94.472,0.25]
[1643562711375,0.1,94.529,94.472,0.25]
[1643562711770,6.0,94.52,94.472,0.25]
[1643562712170,2.95669142,94.519,94.472,0.25]
[1643562712370,3.05669142,94.519,94.448,6.0]
[1643562712569,6.0,94.52,94.438,24.2653]
[1643562712770,0.25,94.519,94.438,24.2653]
[1643562712971,0.25,94.519,94.439,34.57633217]
[1643562713372,23.9672,94.519,94.439,34.57633217]
[1643562713589,6.0,94.51,94.439,34.57633217]
[1643562713789,0.25,94.509,94.44,0.25]
[1643562713994,15.881,94.5,94.44,16.131]
[1643562714191,0.1,94.499,94.44,16.131]
[1643562718097,0.1,94.499,94.45,6.0]
[1643562718298,0.1,94.499,94.451,0.25]
[1643562718498,0.1,94.499,94.44,16.131]
[1643562718898,15.881,94.49,94.44,16.131]
[1643562719100,0.1,94.489,94.45,21.88]
[1643562719298,0.25,94.509,94.451,0.25]
[1643562719900,0.35,94.518,94.451,0.25]
[1643562720100,0.1,94.518,94.46,21.878]
[1643562720311,0.1,94.518,94.461,0.25]
[1643562720504,0.1,94.518,94.471,26.21989229]
[1643562720905,0.1,94.518,94.472,0.25]
[1643562721104,15.878,94.51,94.472,0.25]
[1643562721305,0.1,94.509,94.472,0.25]
[1643562722907,0.1,94.518,94.472,0.25]
[1643562723111,1.43363395,94.532,94.481,6.0]
[1643562723305,0.25,94.53,94.482,0.25]
[1643562723707,16.124,94.53,94.482,0.25]
[1643562723908,0.1,94.529,94.482,0.25]
[1643562724107,1.43363395,94.544,94.482,0.25]
[1643562724309,1.43363395,94.546,94.482,0.25]
[1643562724507,1.43363395,94.549,94.482,0.25]
[1643562724708,1.43363395,94.549,94.49,15.873]
[1643562724909,1.43363395,94.549,94.491,0.25]
[1643562725108,0.1,94.549,94.491,0.25]
[1643562725308,1.43363395,94.546,94.491,0.25]
[1643562726008,1.43363395,94.547,94.483,0.25]
[1643562726208,1.43363395,94.546,94.483,0.25]
[1643562726607,1.43363395,94.549,94.483,0.25]
[1643562727008,15.872,94.54,94.49,15.873]
[1643562727208,0.1,94.539,94.49,15.873]
[1643562727408,0.1,94.539,94.501,34.57633217]
[1643562727817,0.1,94.539,94.502,0.25]
[1643562728211,0.1,94.539,94.511,6.0]
[1643562728411,0.1,94.539,94.512,0.25]
[1643562729414,15.874,94.53,94.512,0.25]
[1643562729614,0.1,94.529,94.502,0.25]
[1643562729915,52.915,94.55,94.502,0.25]
[1643562730115,6.0,94.542,94.502,0.25]
[1643562730513,15.874,94.54,94.502,0.25]
[1643562730714,0.1,94.539,94.502,0.25]
[1643562731114,1.43363395,94.55,94.502,0.25]
[1643562731317,1.43363395,94.549,94.502,0.25]
[1643562731515,1.43363395,94.548,94.502,0.25]
[1643562732115,1.43363395,94.547,94.502,0.25]
[1643562732340,2.99530375,94.568,94.502,0.25]
[1643562732341,15.874,94.54,94.502,0.25]
[1643562732539,0.1,94.539,94.502,0.25]
[1643562732740,1.43363395,94.546,94.435,1.46758346]
[1643562732940,2.95669142,94.539,94.434,1.46758346]
[1643562733141,1.43363395,94.538,94.463,6.0]
[1643562733340,15.876,94.53,94.444,6.0]
[1643562733540,15.876,94.53,94.423,49.7673]
[1643562733541,6.0,94.52,94.439,6.0]
[1643562733741,26.13070622,94.518,94.44,25.8840465]
[1643562733941,0.1,94.517,94.44,25.8840465]
[1643562734140,0.35,94.517,94.45,6.0]
[1643562734341,15.882,94.51,94.45,6.0]
[1643562734643,0.1,94.509,94.45,6.0]
[1643562734841,0.35,94.517,94.451,0.25]
[1643562735443,3.74940149,94.499,94.451,0.25]
[1643562735742,0.1,94.499,94.451,0.25]
[1643562736144,0.1,94.518,94.451,6.25]
[1643562736544,15.878,94.51,94.451,6.25]
[1643562736745,0.1,94.509,94.451,6.25]
[1643562738546,0.1,94.509,94.461,6.0]
[1643562738747,0.1,94.509,94.441,22.6741]
[1643562738947,0.35,94.509,94.45,6.0]
[1643562739148,0.35,94.509,94.451,6.0]
[1643562739446,0.35,94.509,94.45,6.0]
[1643562740051,5.31981727,94.499,94.45,6.0]
[1643562740251,5.31981727,94.499,94.451,0.25]
[1643562740252,5.41981727,94.499,94.451,0.25]
[1643562740854,0.1,94.499,94.451,0.25]
[1643562741258,0.25,94.508,94.451,0.25]
[1643562741658,15.879,94.5,94.451,0.25]
[1643562741854,26.16558663,94.499,94.451,0.25]
[1643562742060,0.1,94.498,94.451,0.25]
[1643562743264,15.881,94.49,94.451,0.25]
[1643562743558,0.1,94.489,94.45,6.0]
[1643562743760,0.25,94.489,94.45,6.0]
[1643562743961,0.1,94.498,94.45,6.0]
[1643562744171,0.1,94.498,94.402,1.46758346]
[1643562744361,105.5,94.479,94.394,1.46758346]
[1643562744561,105.5,94.477,94.378,1.46758346]
[1643562744764,0.1,94.476,94.37,1.46758346]
[1643562744962,0.1,94.476,94.361,1.46758346]
[1643562745161,2.95669142,94.476,94.371,19.08695049]
[1643562745362,2.95669142,94.475,94.371,19.08695049]
[1643562745562,15.892,94.46,94.381,6.0]
[1643562745762,21.65409662,94.459,94.381,6.0]
[1643562745964,23.9417,94.458,94.371,19.08695049]
[1643562746165,0.1,94.457,94.371,19.08695049]
[1643562746363,0.1,94.457,94.372,0.25]
[1643562746572,6.0,94.448,94.372,0.25]
[1643562746764,8.32601109,94.439,94.372,0.25]
[1643562746965,8.42601109,94.439,94.372,0.25]
[1643562747164,8.32601109,94.439,94.372,0.25]
[1643562747367,8.32601109,94.439,94.381,6.0]
[1643562747867,8.32601109,94.439,94.382,0.25]
[1643562748064,15.891,94.43,94.382,0.25]
[1643562748465,0.25,94.429,94.382,0.25]
[1643562748866,0.25,94.438,94.372,0.25]
[1643562749467,15.894,94.42,94.372,0.25]
[1643562749970,15.894,94.42,94.381,6.0]
[1643562750367,15.894,94.42,94.382,0.25]
[1643562751269,15.895,94.41,94.372,0.25]
[1643562753270,0.25,94.409,94.343,0.25]
[1643562753471,15.9,94.39,94.343,0.25]
[1643562753670,15.9,94.39,94.32,22.9223]
[1643562753671,15.9,94.39,94.328,0.25]
[1643562753871,15.9,94.39,94.33,6.0]
[1643562754077,15.9,94.39,94.331,25.52750534]
[1643562754078,8.32601109,94.389,94.331,25.52750534]
[1643562754271,8.32601109,94.389,94.331,25.77750534]
[1643562754473,8.32601109,94.389,94.341,6.0]
[1643562754672,24.5234,94.399,94.341,6.0]
[1643562754871,24.5234,94.399,94.342,0.25]
[1643562755674,27.78517896,94.398,94.342,0.25]
[1643562755872,15.898,94.39,94.342,0.25]
[1643562757974,23.402,94.42,94.342,0.25]
[1643562758174,1.43363395,94.473,94.343,2.403592]
[1643562758175,0.1,94.436,94.343,2.403592]
[1643562758374,0.1,94.455,94.344,0.25]
[1643562758596,6.0,94.446,94.353,6.0]
[1643562758796,34.70364744,94.446,94.355,0.69238695]
[1643562758997,0.1,94.445,94.355,6.69238695]
[1643562759196,15.889,94.44,94.365,105.5]
[1643562759397,0.1,94.439,94.366,0.25]
[1643562759597,0.1,94.439,94.366,8.653592]
[1643562759797,0.1,94.439,94.366,2.653592]
[1643562759998,0.1,94.439,94.376,6.0]
[1643562760197,0.1,94.439,94.377,24.83367363]
[1643562760401,0.1,94.439,94.377,31.08367363]
[1643562760802,0.1,94.449,94.377,31.08367363]
[1643562761000,0.1,94.449,94.377,33.48726563]
[1643562761403,0.1,94.455,94.377,33.48726563]
[1643562761601,15.886,94.46,94.38,6.0]
[1643562761801,0.1,94.459,94.381,0.25]
[1643562762002,0.1,94.462,94.387,6.0]
[1643562762401,0.1,94.462,94.39,6.0]
[1643562762600,0.1,94.462,94.39,111.5]
[1643562762803,15.887,94.45,94.391,0.25]
[1643562763002,0.1,94.449,94.399,1.38621866]
[1643562763500,0.1,94.449,94.409,6.0]
[1643562763899,0.1,94.449,94.399,1.38621866]
[1643562763900,0.1,94.449,94.41,0.25]
[1643562764902,0.1,94.449,94.409,6.0]
[1643562765103,0.1,94.459,94.411,2.403592]
[1643562765302,0.1,94.489,94.412,0.25]
[1643562765905,15.885,94.47,94.412,0.25]
[1643562766104,0.1,94.469,94.412,0.25]
[1643562766505,0.1,94.469,94.41,0.25]
[1643562766706,6.43782187,94.471,94.41,0.25]